[Event "Early-Titled-Tuesday-Blitz-July-09-2024"]
[Site "Chess.com"]
[Date "2024.07.09"]
[Round "1"]
[White "quvnoq_muxlis"]
[Black "Defenstrator"]
[Result "1-0"]
[WhiteElo "2710"]
[BlackElo "2398"]
[TimeControl "180+1"]
[EndTime "8:09:15 PDT"]
[Termination "quvnoq_muxlis won on time"]

1. e4 {[%clk 0:02:57.4]} 1... c5 {[%clk 0:02:59.4]} 2. Nf3 {[%clk 0:02:57.4]}
2... Nc6 {[%clk 0:02:59.2]} 3. Bb5 {[%clk 0:02:57.3]} 3... e5 {[%clk 0:02:52.4]}
4. O-O {[%clk 0:02:57.1]} 4... Bd6 {[%clk 0:02:51.7]} 5. c3 {[%clk 0:02:55.9]}
5... Nge7 {[%clk 0:02:47.7]} 6. Re1 {[%clk 0:02:45.8]} 6... O-O {[%clk
0:02:38.9]} 7. Na3 {[%clk 0:02:45.7]} 7... Bc7 {[%clk 0:02:37.2]} 8. d4 {[%clk
0:02:43.6]} 8... cxd4 {[%clk 0:02:35]} 9. cxd4 {[%clk 0:02:44.5]} 9... d5 {[%clk
0:02:27.6]} 10. dxe5 {[%clk 0:02:33.5]} 10... dxe4 {[%clk 0:02:13.5]} 11. Qxd8
{[%clk 0:02:34.4]} 11... Rxd8 {[%clk 0:02:13.4]} 12. Rxe4 {[%clk 0:02:34]} 12...
Rd1+ {[%clk 0:02:08.6]} 13. Bf1 {[%clk 0:02:32.6]} 13... Bf5 {[%clk 0:02:03.7]}
14. Re2 {[%clk 0:02:15.3]} 14... Ng6 {[%clk 0:01:06.5]} 15. Nb5 {[%clk
0:02:11.5]} 15... Ba5 {[%clk 0:01:03.9]} 16. Nc3 {[%clk 0:02:00.7]} 16... Bxc3
{[%clk 0:01:00.3]} 17. bxc3 {[%clk 0:02:01.6]} 17... Ngxe5 {[%clk 0:00:57]} 18.
Nxe5 {[%clk 0:01:52.1]} 18... Re8 {[%clk 0:00:51.6]} 19. g4 {[%clk 0:00:55.3]}
19... Bd3 {[%clk 0:00:47.3]} 20. Nxd3 {[%clk 0:00:41.3]} 20... Rxe2 {[%clk
0:00:46.8]} 21. Kg2 {[%clk 0:00:40.9]} 21... Re4 {[%clk 0:00:42.9]} 22. Kf3
{[%clk 0:00:33.8]} 22... Ra4 {[%clk 0:00:36.8]} 23. Be2 {[%clk 0:00:32.4]} 23...
Rg1 {[%clk 0:00:31.6]} 24. h3 {[%clk 0:00:27.3]} 24... f5 {[%clk 0:00:25]} 25.
gxf5 {[%clk 0:00:22.2]} 25... Ne7 {[%clk 0:00:22.8]} 26. Nb2 {[%clk 0:00:20.1]}
26... Rh4 {[%clk 0:00:22.3]} 27. Bc4+ {[%clk 0:00:18.1]} 27... Kf8 {[%clk
0:00:22]} 28. Be6 {[%clk 0:00:18.1]} 28... Rxh3+ {[%clk 0:00:21.5]} 29. Ke2
{[%clk 0:00:18.5]} 29... Rhh1 {[%clk 0:00:21.4]} 30. Nd3 {[%clk 0:00:19.1]}
30... Nc6 {[%clk 0:00:18.6]} 31. Ba3+ {[%clk 0:00:16.4]} 31... Ke8 {[%clk
0:00:18.1]} 32. Rxg1 {[%clk 0:00:17.3]} 32... Rxg1 {[%clk 0:00:19]} 33. Nc5
{[%clk 0:00:17]} 33... Nd8 {[%clk 0:00:13.4]} 34. Bd5 {[%clk 0:00:14.3]} 34...
b6 {[%clk 0:00:13.2]} 35. Ne4 {[%clk 0:00:14.5]} 35... h5 {[%clk 0:00:10.4]} 36.
f6 {[%clk 0:00:13.9]} 36... h4 {[%clk 0:00:06.1]} 37. Nd6+ {[%clk 0:00:13.5]}
37... Kd7 {[%clk 0:00:05.6]} 38. f7 {[%clk 0:00:13]} 38... Nxf7 {[%clk 0:00:06]}
39. Nxf7 {[%clk 0:00:12.2]} 39... h3 {[%clk 0:00:05.2]} 40. Ne5+ {[%clk
0:00:12.8]} 40... Kc7 {[%clk 0:00:04.7]} 41. Nf3 {[%clk 0:00:13.5]} 41... Ra1
{[%clk 0:00:04.1]} 42. Bf8 {[%clk 0:00:07.9]} 42... g5 {[%clk 0:00:04]} 43. Be6
{[%clk 0:00:08.4]} 43... g4 {[%clk 0:00:03.4]} 44. Bxg4 {[%clk 0:00:08.2]} 44...
Rxa2+ {[%clk 0:00:04.1]} 45. Ke3 {[%clk 0:00:07.1]} 45... Rc2 {[%clk 0:00:03.4]}
46. Bg7 {[%clk 0:00:06.4]} 46... a5 {[%clk 0:00:02.6]} 47. Bxh3 {[%clk
0:00:06.8]} 47... a4 {[%clk 0:00:03.2]} 48. Bf5 {[%clk 0:00:06.1]} 48... Rb2
{[%clk 0:00:02]} 49. Bf8 {[%clk 0:00:05.6]} 49... Rb3 {[%clk 0:00:02.2]} 50. Kd3
{[%clk 0:00:04.4]} 50... a3 {[%clk 0:00:02.4]} 51. Kc2 {[%clk 0:00:05.1]} 51...
a2 {[%clk 0:00:02.3]} 52. Kxb3 {[%clk 0:00:04.5]} 52... a1=Q {[%clk 0:00:02.8]}
53. Nd4 {[%clk 0:00:03.8]} 53... Qf1 {[%clk 0:00:02.5]} 54. f3 {[%clk
0:00:02.5]} 54... b5 {[%clk 0:00:02.1]} 55. Bc5 {[%clk 0:00:02.2]} 55... Kb7
{[%clk 0:00:01.8]} 56. Bb4 {[%clk 0:00:02.4]} 56... Kb6 {[%clk 0:00:01.7]} 57.
Be4 {[%clk 0:00:03.3]} 57... Qc4+ {[%clk 0:00:01.8]} 58. Kc2 {[%clk 0:00:03.9]}
58... Qa2+ {[%clk 0:00:01.7]} 59. Kd3 {[%clk 0:00:04.6]} 59... Qb1+ {[%clk
0:00:02.4]} 60. Ke3 {[%clk 0:00:05.5]} 60... Qe1+ {[%clk 0:00:02.5]} 61. Kf4
{[%clk 0:00:06]} 61... Qc1+ {[%clk 0:00:02.4]} 62. Kf5 {[%clk 0:00:05.8]} 62...
Qe3 {[%clk 0:00:02.2]} 63. f4 {[%clk 0:00:05.9]} 63... Qh3+ {[%clk 0:00:02]} 64.
Ke5 {[%clk 0:00:06.5]} 64... Qh5+ {[%clk 0:00:01.9]} 65. f5 {[%clk 0:00:06.3]}
65... Qe8+ {[%clk 0:00:02.5]} 66. Ne6 {[%clk 0:00:06.1]} 66... Qb8+ {[%clk
0:00:02.1]} 67. Bd6 {[%clk 0:00:06.6]} 67... Qh8+ {[%clk 0:00:02.9]} 68. f6
{[%clk 0:00:05.7]} 68... b4 {[%clk 0:00:03.5]} 69. cxb4 {[%clk 0:00:05.5]} 69...
Qh2+ {[%clk 0:00:03.7]} 70. Kd5 {[%clk 0:00:04.9]} 70... Qa2+ {[%clk 0:00:04]}
71. Ke5 {[%clk 0:00:04.6]} 71... Qh2+ {[%clk 0:00:04.3]} 72. Nf4 {[%clk
0:00:05.5]} 72... Qb2+ {[%clk 0:00:04]} 73. Kf5 {[%clk 0:00:04.2]} 73... Qh2
{[%clk 0:00:02.5]} 74. Bc5+ {[%clk 0:00:04.5]} 74... Kc7 {[%clk 0:00:02.6]} 75.
f7 {[%clk 0:00:04.3]} 75... Qh7+ {[%clk 0:00:02.2]} 76. Kf6 {[%clk 0:00:04.9]}
76... Qxe4 {[%clk 0:00:01.8]} 77. Ne6+ {[%clk 0:00:04.2]} 77... Kd7 {[%clk
0:00:01.3]} 78. f8=N+ {[%clk 0:00:03.6]} 78... Kc6 {[%clk 0:00:01.3]} 79. Ke7
{[%clk 0:00:04.5]} 1-0

[Event "Early-Titled-Tuesday-Blitz-July-09-2024"]
[Site "Chess.com"]
[Date "2024.07.09"]
[Round "1"]
[White "IMGC"]
[Black "BardArtem"]
[Result "1/2-1/2"]
[WhiteElo "2466"]
[BlackElo "2831"]
[TimeControl "180+1"]
[EndTime "8:09:16 PDT"]
[Termination "Game drawn by repetition"]

1. d4 {[%clk 0:02:59.7]} 1... d5 {[%clk 0:02:57.4]} 2. e3 {[%clk 0:02:59.4]}
2... Nf6 {[%clk 0:02:57.3]} 3. c4 {[%clk 0:02:59.7]} 3... e6 {[%clk 0:02:57.6]}
4. Nc3 {[%clk 0:03:00]} 4... c5 {[%clk 0:02:56.4]} 5. Nf3 {[%clk 0:02:56.2]}
5... Nc6 {[%clk 0:02:55]} 6. cxd5 {[%clk 0:02:52.1]} 6... exd5 {[%clk
0:02:54.4]} 7. Be2 {[%clk 0:02:52.6]} 7... cxd4 {[%clk 0:02:53.2]} 8. Nxd4
{[%clk 0:02:52]} 8... Bd6 {[%clk 0:02:53.5]} 9. O-O {[%clk 0:02:50.7]} 9... O-O
{[%clk 0:02:52.4]} 10. b3 {[%clk 0:02:47.9]} 10... Re8 {[%clk 0:02:50.6]} 11.
Bb2 {[%clk 0:02:47.6]} 11... a6 {[%clk 0:02:49.2]} 12. Rc1 {[%clk 0:02:41.2]}
12... Bc7 {[%clk 0:02:49.2]} 13. Nxc6 {[%clk 0:02:38.3]} 13... bxc6 {[%clk
0:02:50.1]} 14. Na4 {[%clk 0:02:35.7]} 14... Qd6 {[%clk 0:02:48.9]} 15. g3
{[%clk 0:02:36.3]} 15... Bh3 {[%clk 0:02:48.3]} 16. Re1 {[%clk 0:02:36.7]} 16...
Ne4 {[%clk 0:02:34.3]} 17. Qd4 {[%clk 0:02:25.4]} 17... f6 {[%clk 0:02:30.1]}
18. Nc5 {[%clk 0:02:14.4]} 18... Rab8 {[%clk 0:01:55]} 19. Nxe4 {[%clk
0:02:06.4]} 19... Rxe4 {[%clk 0:01:55.9]} 20. Qc5 {[%clk 0:02:06.8]} 20... Qxc5
{[%clk 0:01:14.6]} 21. Rxc5 {[%clk 0:02:07.7]} 21... Bd7 {[%clk 0:01:14.8]} 22.
Bf3 {[%clk 0:02:05.6]} 22... Bd6 {[%clk 0:01:03.4]} 23. Rc2 {[%clk 0:01:59.7]}
23... Ree8 {[%clk 0:01:00.9]} 24. Rd1 {[%clk 0:01:56.9]} 24... Kf7 {[%clk
0:00:54.7]} 25. e4 {[%clk 0:01:50.1]} 25... Re7 {[%clk 0:00:27.5]} 26. exd5
{[%clk 0:01:48.6]} 26... c5 {[%clk 0:00:27.6]} 27. Kg2 {[%clk 0:01:42.4]} 27...
Rbe8 {[%clk 0:00:26.8]} 28. Ba3 {[%clk 0:01:41.6]} 28... Rc8 {[%clk 0:00:12.3]}
29. Rdc1 {[%clk 0:01:35.3]} 29... Bf5 {[%clk 0:00:12.3]} 30. Rc4 {[%clk
0:01:33.3]} 30... Rec7 {[%clk 0:00:12.2]} 31. Ra4 {[%clk 0:01:19.9]} 31... Bd3
{[%clk 0:00:11]} 32. Re1 {[%clk 0:00:59.8]} 32... Re7 {[%clk 0:00:06.7]} 33. Rd1
{[%clk 0:00:51.8]} 33... Bb5 {[%clk 0:00:05.9]} 34. Re4 {[%clk 0:00:52.3]} 34...
Rxe4 {[%clk 0:00:02.4]} 35. Bxe4 {[%clk 0:00:52.1]} 35... g6 {[%clk 0:00:03.3]}
36. Bd3 {[%clk 0:00:47.6]} 36... Ke7 {[%clk 0:00:01.5]} 37. Bc4 {[%clk
0:00:45.7]} 37... Kd7 {[%clk 0:00:01.7]} 38. Re1 {[%clk 0:00:43]} 38... Rb8
{[%clk 0:00:02.1]} 39. Re6 {[%clk 0:00:38.4]} 39... Bxc4 {[%clk 0:00:01.3]} 40.
bxc4 {[%clk 0:00:38.9]} 40... f5 {[%clk 0:00:02]} 41. Bc1 {[%clk 0:00:31.9]}
41... Rb1 {[%clk 0:00:01.4]} 42. Bf4 {[%clk 0:00:29.7]} 42... Bxf4 {[%clk
0:00:01.3]} 43. gxf4 {[%clk 0:00:30.6]} 43... Rb4 {[%clk 0:00:01.9]} 44. Rxa6
{[%clk 0:00:27.4]} 44... Rxc4 {[%clk 0:00:02.4]} 45. Rc6 {[%clk 0:00:20.4]}
45... Rxf4 {[%clk 0:00:02.5]} 46. Rxc5 {[%clk 0:00:20.3]} 46... h5 {[%clk
0:00:02.2]} 47. Ra5 {[%clk 0:00:19.4]} 47... Kd6 {[%clk 0:00:01.5]} 48. Ra6+
{[%clk 0:00:18.6]} 48... Kxd5 {[%clk 0:00:02.1]} 49. Rxg6 {[%clk 0:00:19.3]}
49... Ra4 {[%clk 0:00:03]} 50. Rg5 {[%clk 0:00:19]} 50... Ke5 {[%clk 0:00:02.6]}
51. Rxh5 {[%clk 0:00:18.3]} 51... Rxa2 {[%clk 0:00:03.3]} 52. Rh8 {[%clk
0:00:17.1]} 52... Kf6 {[%clk 0:00:03.7]} 53. Rf8+ {[%clk 0:00:17.3]} 53... Kg6
{[%clk 0:00:03.9]} 54. Rb8 {[%clk 0:00:17.7]} 54... Kg5 {[%clk 0:00:04.2]} 55.
Rb5 {[%clk 0:00:17.7]} 55... Kg6 {[%clk 0:00:04.6]} 56. Kg3 {[%clk 0:00:17]}
56... Ra3+ {[%clk 0:00:04.9]} 57. f3 {[%clk 0:00:17.2]} 57... Ra4 {[%clk
0:00:05]} 58. Rd5 {[%clk 0:00:15.5]} 58... Rb4 {[%clk 0:00:05.3]} 59. Rd8 {[%clk
0:00:15.7]} 59... Ra4 {[%clk 0:00:05.7]} 60. Rg8+ {[%clk 0:00:16.2]} 60... Kf6
{[%clk 0:00:06.3]} 61. Rh8 {[%clk 0:00:16.8]} 61... Kg6 {[%clk 0:00:06.8]} 62.
Rh4 {[%clk 0:00:14.5]} 62... Ra8 {[%clk 0:00:04.2]} 63. Rc4 {[%clk 0:00:14.7]}
63... Ra1 {[%clk 0:00:03.2]} 64. Kf4 {[%clk 0:00:14.3]} 64... Ra6 {[%clk
0:00:03.2]} 65. h3 {[%clk 0:00:13.5]} 65... Kf6 {[%clk 0:00:03.7]} 66. Rd4
{[%clk 0:00:13.4]} 66... Rb6 {[%clk 0:00:03.5]} 67. Rc4 {[%clk 0:00:13.4]} 67...
Ra6 {[%clk 0:00:03.9]} 68. Kg3 {[%clk 0:00:13.6]} 68... Kg5 {[%clk 0:00:03.9]}
69. h4+ {[%clk 0:00:13.9]} 69... Kf6 {[%clk 0:00:03.9]} 70. Kf4 {[%clk
0:00:13.4]} 70... Rb6 {[%clk 0:00:04.2]} 71. Ra4 {[%clk 0:00:12.8]} 71... Rc6
{[%clk 0:00:04.5]} 72. Kg3 {[%clk 0:00:11.9]} 72... Rb6 {[%clk 0:00:03.1]} 73.
h5 {[%clk 0:00:11.6]} 73... Kg5 {[%clk 0:00:02.7]} 74. Rh4 {[%clk 0:00:12.2]}
74... Rh6 {[%clk 0:00:01.5]} 75. f4+ {[%clk 0:00:11.2]} 75... Kf6 {[%clk
0:00:02.2]} 76. Kf3 {[%clk 0:00:11.8]} 76... Ke6 {[%clk 0:00:02.9]} 77. Ke3
{[%clk 0:00:11.9]} 77... Kd5 {[%clk 0:00:03.6]} 78. Kd3 {[%clk 0:00:12.4]} 78...
Kc5 {[%clk 0:00:04.2]} 79. Rh3 {[%clk 0:00:10.8]} 79... Kd5 {[%clk 0:00:04.1]}
80. Rh4 {[%clk 0:00:07.8]} 80... Kc5 {[%clk 0:00:04.4]} 81. Kc3 {[%clk
0:00:08.2]} 81... Kd5 {[%clk 0:00:04.8]} 82. Kd3 {[%clk 0:00:08.8]} 1/2-1/2

[Event "Early-Titled-Tuesday-Blitz-July-09-2024"]
[Site "Chess.com"]
[Date "2024.07.09"]
[Round "1"]
[White "MatthewG-p4p"]
[Black "KevinGeorgeMicheal"]
[Result "1/2-1/2"]
[WhiteElo "2923"]
[BlackElo "2514"]
[TimeControl "180+1"]
[EndTime "8:09:45 PDT"]
[Termination "Game drawn by 50-move rule"]

1. f4 {[%clk 0:02:54]} 1... d5 {[%clk 0:02:54.9]} 2. Nf3 {[%clk 0:02:53.8]} 2...
Nf6 {[%clk 0:02:54.5]} 3. g3 {[%clk 0:02:54]} 3... g6 {[%clk 0:02:53.4]} 4. Bg2
{[%clk 0:02:54.7]} 4... Bg7 {[%clk 0:02:54.1]} 5. O-O {[%clk 0:02:55.6]} 5...
O-O {[%clk 0:02:54.8]} 6. d3 {[%clk 0:02:56.5]} 6... c5 {[%clk 0:02:54.2]} 7.
Nc3 {[%clk 0:02:56.5]} 7... Nc6 {[%clk 0:02:52.4]} 8. e4 {[%clk 0:02:56.6]} 8...
dxe4 {[%clk 0:02:50.7]} 9. dxe4 {[%clk 0:02:57.5]} 9... Qxd1 {[%clk 0:02:51.1]}
10. Rxd1 {[%clk 0:02:58.4]} 10... Bg4 {[%clk 0:02:51.6]} 11. e5 {[%clk
0:02:58.7]} 11... Nh5 {[%clk 0:02:32.2]} 12. Be3 {[%clk 0:02:56.3]} 12... f6
{[%clk 0:02:23.1]} 13. exf6 {[%clk 0:02:50.2]} 13... Bxf6 {[%clk 0:02:16.2]} 14.
Bxc5 {[%clk 0:02:48.6]} 14... Rad8 {[%clk 0:02:13.5]} 15. Kf2 {[%clk 0:02:00.7]}
15... b6 {[%clk 0:02:03.9]} 16. Be3 {[%clk 0:01:38.4]} 16... e5 {[%clk
0:02:00.8]} 17. Ne4 {[%clk 0:01:29.7]} 17... exf4 {[%clk 0:01:51.5]} 18. Nxf6+
{[%clk 0:01:29.4]} 18... Rxf6 {[%clk 0:01:50.7]} 19. Rxd8+ {[%clk 0:01:27.7]}
19... Nxd8 {[%clk 0:01:49.4]} 20. gxf4 {[%clk 0:01:28.4]} 20... Nxf4 {[%clk
0:01:46.3]} 21. Bxf4 {[%clk 0:00:33.7]} 21... Rxf4 {[%clk 0:01:45]} 22. Kg3
{[%clk 0:00:34]} 22... Bxf3 {[%clk 0:01:40.2]} 23. Kxf4 {[%clk 0:00:21.9]} 23...
Bxg2 {[%clk 0:01:39.8]} 24. Rd1 {[%clk 0:00:22.6]} 24... Ne6+ {[%clk 0:01:35.4]}
25. Ke5 {[%clk 0:00:22.2]} 25... Ng5 {[%clk 0:01:31.1]} 26. h4 {[%clk
0:00:18.4]} 26... Nf3+ {[%clk 0:01:22.6]} 27. Kf6 {[%clk 0:00:18.4]} 27... h5
{[%clk 0:01:15.7]} 28. Rd8+ {[%clk 0:00:17.6]} 28... Kh7 {[%clk 0:01:14.1]} 29.
Rd7+ {[%clk 0:00:18.4]} 29... Kh6 {[%clk 0:01:10.2]} 30. Rd8 {[%clk 0:00:11.2]}
30... Kh7 {[%clk 0:01:09]} 31. Rd7+ {[%clk 0:00:11.8]} 31... Kh6 {[%clk
0:01:09]} 32. Rxa7 {[%clk 0:00:12.7]} 32... Nxh4 {[%clk 0:01:08.2]} 33. Ra6
{[%clk 0:00:10.3]} 33... Nf3 {[%clk 0:00:51.1]} 34. Rxb6 {[%clk 0:00:10]} 34...
h4 {[%clk 0:00:50.9]} 35. Rb8 {[%clk 0:00:10.2]} 35... Kh7 {[%clk 0:00:46.9]}
36. Rb7+ {[%clk 0:00:10.2]} 36... Kh6 {[%clk 0:00:45.3]} 37. Rb8 {[%clk
0:00:06.9]} 37... Kh5 {[%clk 0:00:27.4]} 38. Rh8+ {[%clk 0:00:06.8]} 38... Kg4
{[%clk 0:00:27.7]} 39. Kxg6 {[%clk 0:00:07.7]} 39... h3 {[%clk 0:00:27.7]} 40.
Rxh3 {[%clk 0:00:08.2]} 40... Bxh3 {[%clk 0:00:25.7]} 41. Kf6 {[%clk 0:00:08.6]}
41... Kf4 {[%clk 0:00:25.1]} 42. c4 {[%clk 0:00:08.4]} 42... Ke4 {[%clk
0:00:24.3]} 43. Ke7 {[%clk 0:00:04.2]} 43... Kd4 {[%clk 0:00:24.4]} 44. b3
{[%clk 0:00:04.9]} 44... Ne5 {[%clk 0:00:23.5]} 45. Kd6 {[%clk 0:00:05]} 45...
Nd3 {[%clk 0:00:23.6]} 46. Kc7 {[%clk 0:00:02.1]} 46... Kc5 {[%clk 0:00:23.2]}
47. a4 {[%clk 0:00:02.6]} 47... Kb4 {[%clk 0:00:22.2]} 48. Kb6 {[%clk
0:00:03.5]} 48... Nc5 {[%clk 0:00:18.6]} 49. a5 {[%clk 0:00:04.3]} 49... Nd7+
{[%clk 0:00:18]} 50. Ka6 {[%clk 0:00:04.8]} 50... Bg2 {[%clk 0:00:16.1]} 51. Ka7
{[%clk 0:00:03.3]} 51... Kxa5 {[%clk 0:00:16.6]} 52. b4+ {[%clk 0:00:02.7]}
52... Kxb4 {[%clk 0:00:15.9]} 53. c5 {[%clk 0:00:03.6]} 53... Kxc5 {[%clk
0:00:15.4]} 54. Ka6 {[%clk 0:00:04.3]} 54... Bf1+ {[%clk 0:00:13.7]} 55. Kb7
{[%clk 0:00:04.2]} 55... Bb5 {[%clk 0:00:12.1]} 56. Kc7 {[%clk 0:00:05.1]} 56...
Nb6 {[%clk 0:00:12.3]} 57. Kd8 {[%clk 0:00:05.8]} 57... Bc4 {[%clk 0:00:09.6]}
58. Ke7 {[%clk 0:00:06.7]} 58... Kd5 {[%clk 0:00:09.1]} 59. Kf6 {[%clk
0:00:07.6]} 59... Nd7+ {[%clk 0:00:08.7]} 60. Kf5 {[%clk 0:00:08.5]} 60... Bd3+
{[%clk 0:00:07.8]} 61. Kf4 {[%clk 0:00:08.7]} 61... Nc5 {[%clk 0:00:07.3]} 62.
Ke3 {[%clk 0:00:09.6]} 62... Bg6 {[%clk 0:00:06.4]} 63. Kf4 {[%clk 0:00:10.5]}
63... Ne6+ {[%clk 0:00:06.9]} 64. Kf3 {[%clk 0:00:11.4]} 64... Ke5 {[%clk
0:00:07.2]} 65. Ke3 {[%clk 0:00:12.3]} 65... Be4 {[%clk 0:00:07.3]} 66. Kd2
{[%clk 0:00:12.7]} 66... Kd4 {[%clk 0:00:07.8]} 67. Ke2 {[%clk 0:00:13.5]} 67...
Nf4+ {[%clk 0:00:07.8]} 68. Kd2 {[%clk 0:00:14.4]} 68... Bf5 {[%clk 0:00:06.5]}
69. Kc1 {[%clk 0:00:14.7]} 69... Kc3 {[%clk 0:00:05.5]} 70. Kd1 {[%clk
0:00:15.4]} 70... Kd3 {[%clk 0:00:04.2]} 71. Kc1 {[%clk 0:00:16.3]} 71... Nd5
{[%clk 0:00:04.4]} 72. Kb2 {[%clk 0:00:17.2]} 72... Nc3 {[%clk 0:00:05]} 73. Kb3
{[%clk 0:00:18.1]} 73... Kd4 {[%clk 0:00:04.8]} 74. Kb4 {[%clk 0:00:19]} 74...
Bd7 {[%clk 0:00:05.3]} 75. Kb3 {[%clk 0:00:19.9]} 75... Ne4 {[%clk 0:00:04.8]}
76. Kc2 {[%clk 0:00:20.1]} 76... Ba4+ {[%clk 0:00:04.4]} 77. Kb2 {[%clk
0:00:19.9]} 77... Kc4 {[%clk 0:00:04.3]} 78. Ka3 {[%clk 0:00:20.8]} 78... Bc6
{[%clk 0:00:04.1]} 79. Kb2 {[%clk 0:00:21.7]} 79... Nc5 {[%clk 0:00:04.1]} 80.
Kc2 {[%clk 0:00:22.6]} 80... Ba4+ {[%clk 0:00:04.1]} 81. Kd2 {[%clk 0:00:23.5]}
81... Kd4 {[%clk 0:00:04.8]} 82. Ke2 {[%clk 0:00:24.1]} 82... Ke4 {[%clk
0:00:04.3]} 83. Kd2 {[%clk 0:00:25]} 83... Ne6 {[%clk 0:00:04.4]} 84. Kc3 {[%clk
0:00:25.9]} 84... Ke3 {[%clk 0:00:04.4]} 85. Kc4 {[%clk 0:00:26.8]} 85... Bd7
{[%clk 0:00:02.6]} 86. Kd5 {[%clk 0:00:27.7]} 86... Bc8 {[%clk 0:00:03.2]} 87.
Ke5 {[%clk 0:00:28.6]} 87... Kd3 {[%clk 0:00:02.4]} 88. Kd6 {[%clk 0:00:29.5]}
88... Kc4 {[%clk 0:00:02.3]} 89. Ke5 {[%clk 0:00:30.4]} 89... Bd7 {[%clk
0:00:02.5]} 90. Ke4 {[%clk 0:00:31.3]} 90... Kc5 {[%clk 0:00:02.9]} 91. Ke5
{[%clk 0:00:32.2]} 91... Kc6 {[%clk 0:00:03.4]} 92. Ke4 {[%clk 0:00:33.1]} 92...
Kd6 {[%clk 0:00:04.1]} 93. Kd3 {[%clk 0:00:33.7]} 93... Ke5 {[%clk 0:00:04.7]}
94. Ke3 {[%clk 0:00:34.6]} 94... Nd4 {[%clk 0:00:05.5]} 95. Kd3 {[%clk
0:00:35.5]} 95... Kd5 {[%clk 0:00:06.3]} 96. Ke3 {[%clk 0:00:36]} 96... Nf5+
{[%clk 0:00:06.8]} 97. Kd3 {[%clk 0:00:36.9]} 97... Be6 {[%clk 0:00:07.2]} 98.
Kc3 {[%clk 0:00:37.8]} 98... Ke4 {[%clk 0:00:06]} 99. Kd2 {[%clk 0:00:38.1]}
99... Kd4 {[%clk 0:00:06.4]} 100. Kc2 {[%clk 0:00:38.6]} 100... Ne3+ {[%clk
0:00:05.4]} 101. Kd2 {[%clk 0:00:39.5]} 101... Bg4 {[%clk 0:00:05.2]} 102. Kc1
{[%clk 0:00:39.9]} 102... Kc3 {[%clk 0:00:05.2]} 103. Kb1 {[%clk 0:00:40.8]}
103... Nc2 {[%clk 0:00:04.6]} 1/2-1/2

[Event "Early-Titled-Tuesday-Blitz-July-09-2024"]
[Site "Chess.com"]
[Date "2024.07.09"]
[Round "2"]
[White "snowlord"]
[Black "Road2GM3000"]
[Result "1-0"]
[WhiteElo "2912"]
[BlackElo "2417"]
[TimeControl "180+1"]
[EndTime "8:11:57 PDT"]
[Termination "snowlord won by resignation"]

1. e4 {[%clk 0:03:00.9]} 1... c5 {[%clk 0:02:57.4]} 2. Nf3 {[%clk 0:02:59.8]}
2... d6 {[%clk 0:02:57.5]} 3. c3 {[%clk 0:02:59.8]} 3... Nf6 {[%clk 0:02:57.8]}
4. Qc2 {[%clk 0:03:00.5]} 4... Nc6 {[%clk 0:02:58.2]} 5. d4 {[%clk 0:03:00]}
5... cxd4 {[%clk 0:02:58.2]} 6. cxd4 {[%clk 0:03:00.9]} 6... Bg4 {[%clk
0:02:58.7]} 7. d5 {[%clk 0:03:01.2]} 7... Ne5 {[%clk 0:02:57.2]} 8. Nxe5 {[%clk
0:03:00.2]} 8... dxe5 {[%clk 0:02:58.1]} 9. Nc3 {[%clk 0:02:59.3]} 9... g6
{[%clk 0:02:58.1]} 10. f3 {[%clk 0:02:43.1]} 10... Bd7 {[%clk 0:02:57.3]} 11.
Be3 {[%clk 0:02:43.1]} 11... Bg7 {[%clk 0:02:57.9]} 12. Qb3 {[%clk 0:02:43.4]}
12... b6 {[%clk 0:02:56.2]} 13. Bb5 {[%clk 0:02:42.9]} 13... O-O {[%clk
0:02:55.7]} 14. O-O {[%clk 0:02:43.6]} 14... Bxb5 {[%clk 0:02:55.2]} 15. Qxb5
{[%clk 0:02:43.4]} 15... Nd7 {[%clk 0:02:55.9]} 16. Rac1 {[%clk 0:02:41.3]}
16... Rc8 {[%clk 0:02:56.3]} 17. Qa6 {[%clk 0:02:40]} 17... Rc7 {[%clk
0:02:55.3]} 18. Nb5 {[%clk 0:02:39.9]} 18... Rxc1 {[%clk 0:02:54.9]} 19. Rxc1
{[%clk 0:02:40.8]} 19... f5 {[%clk 0:02:47]} 20. Qxa7 {[%clk 0:02:36.3]} 20...
fxe4 {[%clk 0:02:47.1]} 21. fxe4 {[%clk 0:02:37.2]} 21... Qe8 {[%clk 0:02:46.5]}
22. Nc7 {[%clk 0:02:32.6]} 22... Qf7 {[%clk 0:02:45.8]} 23. Ne6 {[%clk
0:02:32.9]} 23... Nc5 {[%clk 0:02:42.7]} 24. Bxc5 {[%clk 0:02:28.6]} 24... bxc5
{[%clk 0:02:40.9]} 25. Nxf8 {[%clk 0:02:29.1]} 1-0

[Event "Early-Titled-Tuesday-Blitz-July-09-2024"]
[Site "Chess.com"]
[Date "2024.07.09"]
[Round "2"]
[White "Magionator"]
[Black "KVAIDAN"]
[Result "0-1"]
[WhiteElo "2501"]
[BlackElo "2326"]
[TimeControl "180+1"]
[EndTime "8:12:17 PDT"]
[Termination "KVAIDAN won by resignation"]

1. e4 {[%clk 0:03:00.9]} 1... e5 {[%clk 0:03:00.3]} 2. Nf3 {[%clk 0:03:00.8]}
2... d5 {[%clk 0:02:59.3]} 3. exd5 {[%clk 0:02:59.8]} 3... e4 {[%clk 0:02:59.3]}
4. Qe2 {[%clk 0:03:00.2]} 4... Nf6 {[%clk 0:02:52.5]} 5. Nc3 {[%clk 0:03:00.2]}
5... Be7 {[%clk 0:02:52.7]} 6. Nxe4 {[%clk 0:03:00.2]} 6... Nxd5 {[%clk
0:02:53.2]} 7. d4 {[%clk 0:02:56.8]} 7... O-O {[%clk 0:02:51.8]} 8. Be3 {[%clk
0:02:56.9]} 8... Re8 {[%clk 0:02:51.1]} 9. O-O-O {[%clk 0:02:54.9]} 9... f5
{[%clk 0:02:51.3]} 10. Nc5 {[%clk 0:02:44]} 10... f4 {[%clk 0:02:46.3]} 11. Bd2
{[%clk 0:02:43.9]} 11... Bxc5 {[%clk 0:02:44.3]} 12. Qc4 {[%clk 0:02:44.1]}
12... Bf8 {[%clk 0:02:38.3]} 13. h4 {[%clk 0:02:38.4]} 13... Be6 {[%clk
0:02:36.6]} 14. Ng5 {[%clk 0:02:38.8]} 14... Nb6 {[%clk 0:02:10.5]} 15. Nxe6
{[%clk 0:02:37.3]} 15... Nxc4 {[%clk 0:02:10.5]} 16. Bxc4 {[%clk 0:02:36.8]}
16... Rxe6 {[%clk 0:02:09.3]} 17. Bxe6+ {[%clk 0:02:36.7]} 17... Kh8 {[%clk
0:02:10.2]} 18. Bxf4 {[%clk 0:02:36.6]} 18... Qf6 {[%clk 0:02:09]} 0-1

[Event "Early-Titled-Tuesday-Blitz-July-09-2024"]
[Site "Chess.com"]
[Date "2024.07.09"]
[Round "2"]
[White "NM_Antelacus"]
[Black "WindWhistler11"]
[Result "1-0"]
[WhiteElo "2292"]
[BlackElo "2481"]
[TimeControl "180+1"]
[EndTime "8:12:34 PDT"]
[Termination "NM_Antelacus won by checkmate"]

1. e4 {[%clk 0:03:00.9]} 1... Nc6 {[%clk 0:02:38.2]} 2. d4 {[%clk 0:02:59.6]}
2... Nf6 {[%clk 0:02:39.1]} 3. Nc3 {[%clk 0:02:57.5]} 3... Nxd4 {[%clk
0:02:35.8]} 4. Qxd4 {[%clk 0:02:56.1]} 4... e5 {[%clk 0:02:32]} 5. Qxe5+ {[%clk
0:02:55.2]} 5... Qe7 {[%clk 0:02:29.9]} 6. Qxe7+ {[%clk 0:02:54.1]} 6... Bxe7
{[%clk 0:02:28.8]} 7. Nf3 {[%clk 0:02:53.6]} 7... Nxe4 {[%clk 0:02:24.9]} 8.
Nxe4 {[%clk 0:02:52.3]} 8... d5 {[%clk 0:02:22.4]} 9. Nc3 {[%clk 0:02:51]} 9...
d4 {[%clk 0:02:21.6]} 10. Nxd4 {[%clk 0:02:49.7]} 10... Bc5 {[%clk 0:02:12.5]}
11. Be3 {[%clk 0:02:47.1]} 11... Bxd4 {[%clk 0:02:11.3]} 12. Bxd4 {[%clk
0:02:46.5]} 12... Bf5 {[%clk 0:02:12.2]} 13. O-O-O {[%clk 0:02:43.8]} 13... Kf8
{[%clk 0:02:08.5]} 14. Bd3 {[%clk 0:02:42.9]} 14... Bxd3 {[%clk 0:02:07.8]} 15.
Rxd3 {[%clk 0:02:42.3]} 15... g5 {[%clk 0:02:03.6]} 16. Bxh8 {[%clk 0:02:41]}
16... Kg8 {[%clk 0:02:02.1]} 17. Bf6 {[%clk 0:02:39.6]} 17... Re8 {[%clk
0:02:00]} 18. Re3 {[%clk 0:02:38.4]} 18... Rxe3 {[%clk 0:01:59.4]} 19. fxe3
{[%clk 0:02:38.3]} 19... c6 {[%clk 0:01:55.8]} 20. Rd1 {[%clk 0:02:37.9]} 20...
b6 {[%clk 0:01:50.3]} 21. Rd8# {[%clk 0:02:36.8]} 1-0